[Event "Live Chess"]
[Site "Chess.com"]
[Date "2024.06.02"]
[Round "-"]
[White "KeithArkell"]
[Black "juniortay"]
[Result "1-0"]
[WhiteElo "2433"]
[BlackElo "2440"]
[TimeControl "300"]
[EndTime "21:49:07 PDT"]
[Termination "KeithArkell won by resignation"]

1. d4 {[%clk 0:04:56.6]} 1... d5 {[%clk 0:04:57.9]} 2. Nf3 {[%clk 0:04:55.8]}
2... c5 {[%clk 0:04:57]} 3. c4 {[%clk 0:04:54.9]} 3... e6 {[%clk 0:04:56]} 4.
cxd5 {[%clk 0:04:54.2]} 4... exd5 {[%clk 0:04:55.9]} 5. g3 {[%clk 0:04:53.5]}
5... Nc6 {[%clk 0:04:55.3]} 6. Bg2 {[%clk 0:04:53]} 6... Nf6 {[%clk 0:04:55]} 7.
O-O {[%clk 0:04:52.4]} 7... cxd4 {[%clk 0:04:54.7]} 8. Nxd4 {[%clk 0:04:51]}
8... Bc5 {[%clk 0:04:54.4]} 9. Nxc6 {[%clk 0:04:50.1]} 9... bxc6 {[%clk
0:04:53.8]} 10. Qc2 {[%clk 0:04:49.4]} 10... Qb6 {[%clk 0:04:53.2]} 11. Nc3
{[%clk 0:04:47.5]} 11... Be7 {[%clk 0:04:52.7]} 12. Na4 {[%clk 0:04:45.4]} 12...
Qa6 {[%clk 0:04:51.7]} 13. Bg5 {[%clk 0:04:42]} 13... O-O {[%clk 0:04:48.5]} 14.
b3 {[%clk 0:04:39.6]} 14... Be6 {[%clk 0:04:45.9]} 15. e3 {[%clk 0:04:38.8]}
15... Rac8 {[%clk 0:04:44.4]} 16. Nc5 {[%clk 0:04:37.9]} 16... Bxc5 {[%clk
0:04:40.5]} 17. Qxc5 {[%clk 0:04:37]} 17... Ne4 {[%clk 0:04:38.8]} 18. Bxe4
{[%clk 0:04:34.9]} 18... dxe4 {[%clk 0:04:38.7]} 19. Rfd1 {[%clk 0:04:32.6]}
19... Bd5 {[%clk 0:04:31.9]} 20. Rac1 {[%clk 0:04:30.2]} 20... h6 {[%clk
0:04:26.2]} 21. Be7 {[%clk 0:04:28.2]} 21... Rfe8 {[%clk 0:04:24.7]} 22. Rd2
{[%clk 0:04:26.7]} 22... Qb7 {[%clk 0:03:53.5]} 23. Bd6 {[%clk 0:04:24.4]} 23...
Qd7 {[%clk 0:03:52.6]} 24. Qa3 {[%clk 0:04:17.8]} 24... Re6 {[%clk 0:03:43.1]}
25. Bc5 {[%clk 0:04:16.4]} 25... Rf6 {[%clk 0:03:29.4]} 26. Qxa7 {[%clk
0:04:12.1]} 26... Qh3 {[%clk 0:03:28.2]} 27. Bd4 {[%clk 0:04:06.8]} 27... Rf5
{[%clk 0:03:20.3]} 28. Qd7 {[%clk 0:03:28.5]} 28... Rf8 {[%clk 0:02:59.4]} 29.
Rxc6 {[%clk 0:03:13.8]} 29... Bxc6 {[%clk 0:02:51.6]} 30. Qxc6 {[%clk
0:03:12.6]} 30... Rh5 {[%clk 0:02:45.1]} 31. Qxe4 {[%clk 0:03:11]} 31... Rc8
{[%clk 0:02:29.3]} 32. Rd1 {[%clk 0:02:42.8]} 32... Qxh2+ {[%clk 0:01:50.7]} 33.
Kf1 {[%clk 0:02:40.3]} 33... Qh1+ {[%clk 0:01:33.9]} 34. Qxh1 {[%clk 0:02:38.8]}
34... Rxh1+ {[%clk 0:01:33.3]} 35. Ke2 {[%clk 0:02:38.5]} 35... Rc2+ {[%clk
0:01:31.6]} 36. Rd2 {[%clk 0:02:37.7]} 36... Rxd2+ {[%clk 0:01:13.9]} 37. Kxd2
{[%clk 0:02:35.5]} 37... Kf8 {[%clk 0:01:13.8]} 38. a4 {[%clk 0:02:27.2]} 38...
f6 {[%clk 0:01:10.5]} 39. a5 {[%clk 0:02:26.1]} 39... Rb1 {[%clk 0:01:09]} 40.
Kc2 {[%clk 0:02:24.5]} 40... Ke7 {[%clk 0:01:08.5]} 41. Kxb1 {[%clk 0:02:22.9]}
1-0

[Event "Live Chess"]
[Site "Chess.com"]
[Date "2024.06.02"]
[Round "-"]
[White "rekosheten"]
[Black "Mangoalo"]
[Result "1-0"]
[WhiteElo "2465"]
[BlackElo "1069"]
[TimeControl "300"]
[EndTime "21:49:14 PDT"]
[Termination "rekosheten won by resignation"]

1. b3 {[%clk 0:04:57.2]} 1... e5 {[%clk 0:04:55.3]} 2. Bb2 {[%clk 0:04:53.8]}
2... Nc6 {[%clk 0:04:52.9]} 3. e3 {[%clk 0:04:45.5]} 3... d5 {[%clk 0:04:47.5]}
4. Bb5 {[%clk 0:04:41.6]} 4... Bd7 {[%clk 0:04:45.2]} 5. Bxc6 {[%clk 0:04:37.5]}
5... Bxc6 {[%clk 0:04:45.1]} 6. Bxe5 {[%clk 0:04:36.8]} 6... Qe7 {[%clk
0:04:44.1]} 7. Nf3 {[%clk 0:04:35.4]} 7... f6 {[%clk 0:04:39.4]} 8. Bb2 {[%clk
0:04:33.5]} 8... O-O-O {[%clk 0:04:38.7]} 9. O-O {[%clk 0:04:29.9]} 9... Bb5
{[%clk 0:04:36.3]} 10. d3 {[%clk 0:04:25.6]} 10... Nh6 {[%clk 0:04:32.2]} 11.
Nbd2 {[%clk 0:04:19.7]} 11... Nf7 {[%clk 0:04:31.4]} 12. c4 {[%clk 0:04:17.1]}
12... dxc4 {[%clk 0:04:29.4]} 13. bxc4 {[%clk 0:04:15.6]} 13... Bc6 {[%clk
0:04:26.1]} 14. Nd4 {[%clk 0:04:13.2]} 14... Ne5 {[%clk 0:04:23.7]} 15. Nxc6
{[%clk 0:04:08]} 15... Nxc6 {[%clk 0:04:21.8]} 16. d4 {[%clk 0:04:07]} 16... Qb4
{[%clk 0:04:16.8]} 17. Rb1 {[%clk 0:04:05]} 17... b6 {[%clk 0:04:07.7]} 18. d5
{[%clk 0:03:58.5]} 18... Ne5 {[%clk 0:04:04.8]} 19. Bxe5 {[%clk 0:03:56.9]}
19... Qxb1 {[%clk 0:04:01.1]} 20. Qxb1 {[%clk 0:03:53.7]} 20... fxe5 {[%clk
0:04:01]} 21. Qf5+ {[%clk 0:03:51.8]} 1-0

[Event "Live Chess"]
[Site "Chess.com"]
[Date "2024.06.02"]
[Round "-"]
[White "RockTroll"]
[Black "booktrunk"]
[Result "1-0"]
[WhiteElo "2173"]
[BlackElo "1528"]
[TimeControl "300"]
[EndTime "21:49:30 PDT"]
[Termination "RockTroll won by resignation"]

1. e4 {[%clk 0:04:57.7]} 1... b6 {[%clk 0:04:57.9]} 2. d4 {[%clk 0:04:56]} 2...
Bb7 {[%clk 0:04:57.8]} 3. Bd3 {[%clk 0:04:55.6]} 3... h6 {[%clk 0:04:44.2]} 4.
Nf3 {[%clk 0:04:54.1]} 4... e6 {[%clk 0:04:43.3]} 5. O-O {[%clk 0:04:52.4]} 5...
Nf6 {[%clk 0:04:39]} 6. Re1 {[%clk 0:04:51.2]} 6... d6 {[%clk 0:04:34.5]} 7. e5
{[%clk 0:04:45]} 7... dxe5 {[%clk 0:04:26.5]} 8. dxe5 {[%clk 0:04:40.6]} 8...
Nd5 {[%clk 0:04:20.4]} 9. a3 {[%clk 0:04:37.4]} 9... Be7 {[%clk 0:04:12.3]} 10.
c4 {[%clk 0:04:36.6]} 10... O-O {[%clk 0:03:57.5]} 11. cxd5 {[%clk 0:04:35.2]}
11... Bxd5 {[%clk 0:03:56.2]} 12. Nc3 {[%clk 0:04:34.4]} 12... Bb7 {[%clk
0:03:54]} 13. Bf4 {[%clk 0:04:33.3]} 13... Nc6 {[%clk 0:03:52.8]} 14. Qd2 {[%clk
0:04:27.6]} 14... Nd4 {[%clk 0:03:51.5]} 15. Nxd4 {[%clk 0:04:25.9]} 15... Qxd4
{[%clk 0:03:49.4]} 16. Bh7+ {[%clk 0:04:25.5]} 16... Kh8 {[%clk 0:03:47.5]} 17.
Qxd4 {[%clk 0:04:25]} 1-0

[Event "Live Chess"]
[Site "Chess.com"]
[Date "2024.06.02"]
[Round "-"]
[White "MagnersCarlsberg2870"]
[Black "KGreenGator"]
[Result "1-0"]
[WhiteElo "1839"]
[BlackElo "1776"]
[TimeControl "300"]
[EndTime "21:51:06 PDT"]
[Termination "MagnersCarlsberg2870 won by checkmate"]

1. d4 {[%clk 0:04:52.2]} 1... d5 {[%clk 0:04:58.7]} 2. e3 {[%clk 0:04:50.6]}
2... Nf6 {[%clk 0:04:57.7]} 3. Bd3 {[%clk 0:04:49.9]} 3... e6 {[%clk 0:04:56.6]}
4. Nd2 {[%clk 0:04:48.8]} 4... Be7 {[%clk 0:04:55.9]} 5. f4 {[%clk 0:04:47.3]}
5... O-O {[%clk 0:04:55.8]} 6. Ngf3 {[%clk 0:04:46.5]} 6... c5 {[%clk 0:04:51]}
7. c3 {[%clk 0:04:45.3]} 7... c4 {[%clk 0:04:49.7]} 8. Bc2 {[%clk 0:04:44.2]}
8... b5 {[%clk 0:04:47.2]} 9. Qe2 {[%clk 0:04:43.3]} 9... b4 {[%clk 0:04:46.1]}
10. e4 {[%clk 0:04:40.8]} 10... bxc3 {[%clk 0:04:44.8]} 11. bxc3 {[%clk
0:04:39.6]} 11... Re8 {[%clk 0:04:43.3]} 12. e5 {[%clk 0:04:37.7]} 12... Nfd7
{[%clk 0:04:41.8]} 13. O-O {[%clk 0:04:36.5]} 13... f6 {[%clk 0:04:39.5]} 14.
Nxc4 {[%clk 0:04:23.9]} 14... dxc4 {[%clk 0:04:37.2]} 15. Qe4 {[%clk 0:04:23.1]}
15... Nb6 {[%clk 0:04:12]} 16. Qxh7+ {[%clk 0:04:21.1]} 16... Kf8 {[%clk
0:04:11.4]} 17. Bg6 {[%clk 0:04:13.3]} 17... Bc5 {[%clk 0:03:59.6]} 18. Qh8+
{[%clk 0:04:11.2]} 18... Ke7 {[%clk 0:03:58.8]} 19. Qxg7# {[%clk 0:04:10.3]} 1-0

[Event "Live Chess"]
[Site "Chess.com"]
[Date "2024.06.02"]
[Round "-"]
[White "Dhaydon19"]
[Black "McFim"]
[Result "1-0"]
[WhiteElo "2674"]
[BlackElo "1652"]
[TimeControl "300"]
[EndTime "21:51:42 PDT"]
[Termination "Dhaydon19 won by resignation"]

1. d4 {[%clk 0:04:56.9]} 1... d5 {[%clk 0:04:58.6]} 2. c3 {[%clk 0:04:56.2]}
2... c6 {[%clk 0:04:57.3]} 3. Nf3 {[%clk 0:04:55.6]} 3... Nf6 {[%clk 0:04:55.9]}
4. g3 {[%clk 0:04:55.3]} 4... Bf5 {[%clk 0:04:54.3]} 5. Bg2 {[%clk 0:04:54.7]}
5... e6 {[%clk 0:04:53.1]} 6. O-O {[%clk 0:04:54.4]} 6... Bd6 {[%clk 0:04:51.6]}
7. Nbd2 {[%clk 0:04:53.1]} 7... Ne4 {[%clk 0:04:50.3]} 8. Nh4 {[%clk 0:04:51.9]}
8... Nxd2 {[%clk 0:04:48.2]} 9. Bxd2 {[%clk 0:04:46.1]} 9... Bg6 {[%clk
0:04:46.7]} 10. Nxg6 {[%clk 0:04:43.8]} 10... hxg6 {[%clk 0:04:45.5]} 11. e4
{[%clk 0:04:43.6]} 11... dxe4 {[%clk 0:04:43.4]} 12. Bxe4 {[%clk 0:04:43.1]}
12... Nd7 {[%clk 0:04:42.8]} 13. Qf3 {[%clk 0:04:20.5]} 13... Nf6 {[%clk
0:04:40]} 14. Bc2 {[%clk 0:04:18.6]} 14... Qc7 {[%clk 0:04:34.3]} 15. Rfe1
{[%clk 0:04:16.7]} 15... Kf8 {[%clk 0:04:25.3]} 16. Kg2 {[%clk 0:04:12.7]} 16...
Kg8 {[%clk 0:04:19.4]} 17. h4 {[%clk 0:04:09.4]} 17... Rf8 {[%clk 0:04:15.8]}
18. Re2 {[%clk 0:04:06.4]} 18... Rh5 {[%clk 0:04:08.9]} 19. Rh1 {[%clk
0:04:00.6]} 19... Rh8 {[%clk 0:03:54.8]} 20. g4 {[%clk 0:03:54.4]} 20... Be7
{[%clk 0:03:33]} 21. h5 {[%clk 0:03:53.3]} 21... gxh5 {[%clk 0:03:27.9]} 22.
gxh5 {[%clk 0:03:52.3]} 22... Nh7 {[%clk 0:03:10.6]} 23. Qg4 {[%clk 0:03:44.5]}
23... Qd8 {[%clk 0:03:05.5]} 24. h6 {[%clk 0:03:40.3]} 24... g6 {[%clk
0:03:03.9]} 25. Bxg6 {[%clk 0:03:36.7]} 25... Bg5 {[%clk 0:02:58.1]} 26. Bxh7+
{[%clk 0:03:34.7]} 26... Kxh7 {[%clk 0:02:56.6]} 27. Bxg5 {[%clk 0:03:32.1]}
27... Rhg8 {[%clk 0:02:52.4]} 28. Bxd8 {[%clk 0:03:29.4]} 28... Rxg4+ {[%clk
0:02:50.7]} 29. Kf3 {[%clk 0:03:28.8]} 1-0

[Event "Live Chess"]
[Site "Chess.com"]
[Date "2024.06.02"]
[Round "-"]
[White "elephantgerrald"]
[Black "IgorSchukin"]
[Result "0-1"]
[WhiteElo "785"]
[BlackElo "1774"]
[TimeControl "300"]
[EndTime "21:52:46 PDT"]
[Termination "IgorSchukin won by checkmate"]

1. e4 {[%clk 0:04:58.3]} 1... c5 {[%clk 0:04:55.5]} 2. Nf3 {[%clk 0:04:57]} 2...
Nc6 {[%clk 0:04:54.6]} 3. Nc3 {[%clk 0:04:55.7]} 3... e6 {[%clk 0:04:54.2]} 4.
Bc4 {[%clk 0:04:54.7]} 4... Qc7 {[%clk 0:04:53.2]} 5. O-O {[%clk 0:04:52.3]}
5... Nf6 {[%clk 0:04:52.2]} 6. d3 {[%clk 0:04:51.3]} 6... a6 {[%clk 0:04:50.4]}
7. g3 {[%clk 0:04:49.9]} 7... h6 {[%clk 0:04:48.7]} 8. Bf4 {[%clk 0:04:48.8]}
8... d6 {[%clk 0:04:46.5]} 9. a3 {[%clk 0:04:45.1]} 9... b5 {[%clk 0:04:45]} 10.
Bb3 {[%clk 0:04:43.6]} 10... g5 {[%clk 0:04:43.2]} 11. Be3 {[%clk 0:04:41.3]}
11... Bg7 {[%clk 0:04:41.3]} 12. d4 {[%clk 0:04:38.6]} 12... cxd4 {[%clk
0:04:39.7]} 13. Bxd4 {[%clk 0:04:36.7]} 13... Nxd4 {[%clk 0:04:37]} 14. Nxd4
{[%clk 0:04:31.3]} 14... Bb7 {[%clk 0:04:35]} 15. Re1 {[%clk 0:04:28.4]} 15...
O-O {[%clk 0:04:33.2]} 16. Nxe6 {[%clk 0:04:21.2]} 16... fxe6 {[%clk 0:04:31.4]}
17. Bxe6+ {[%clk 0:04:20.1]} 17... Kh8 {[%clk 0:04:29.6]} 18. Nd5 {[%clk
0:04:12.3]} 18... Bxd5 {[%clk 0:04:24.3]} 19. exd5 {[%clk 0:04:10.7]} 19... Rfe8
{[%clk 0:04:13.7]} 20. f4 {[%clk 0:04:04.3]} 20... gxf4 {[%clk 0:04:06.7]} 21.
gxf4 {[%clk 0:04:03.1]} 21... Qc5+ {[%clk 0:04:05.1]} 22. Kh1 {[%clk 0:04:00.6]}
22... b4 {[%clk 0:03:55]} 23. a4 {[%clk 0:03:55.1]} 23... Qf2 {[%clk 0:03:46.9]}
24. Re2 {[%clk 0:03:46.8]} 24... Qxf4 {[%clk 0:03:44.2]} 25. Qg1 {[%clk
0:03:37.5]} 25... Nxd5 {[%clk 0:03:31.9]} 26. Qg2 {[%clk 0:03:28.9]} 26... Ne3
{[%clk 0:03:21.7]} 27. Rxe3 {[%clk 0:03:24.2]} 27... Qxe3 {[%clk 0:03:19.9]} 28.
Rg1 {[%clk 0:03:23.1]} 28... Qe5 {[%clk 0:03:09.8]} 29. Bd7 {[%clk 0:03:18.3]}
29... Rg8 {[%clk 0:03:06]} 30. Bc6 {[%clk 0:03:13]} 30... Rac8 {[%clk
0:02:57.7]} 31. Be4 {[%clk 0:03:11.2]} 31... Bf6 {[%clk 0:02:49.9]} 32. Qh3
{[%clk 0:02:58]} 32... Qxe4+ {[%clk 0:02:47.3]} 33. Rg2 {[%clk 0:02:46.4]} 33...
Qe1+ {[%clk 0:02:44.8]} 34. Rg1 {[%clk 0:02:44.4]} 34... Qxg1# {[%clk
0:02:43.9]} 0-1

[Event "Live Chess"]
[Site "Chess.com"]
[Date "2024.06.02"]
[Round "-"]
[White "juniortay"]
[Black "rekosheten"]
[Result "0-1"]
[WhiteElo "2433"]
[BlackElo "2473"]
[TimeControl "300"]
[EndTime "21:54:01 PDT"]
[Termination "rekosheten won by resignation"]

1. e4 {[%clk 0:04:57.1]} 1... c6 {[%clk 0:04:58.2]} 2. Nf3 {[%clk 0:04:56.7]}
2... d5 {[%clk 0:04:58.1]} 3. exd5 {[%clk 0:04:56.2]} 3... cxd5 {[%clk
0:04:57.1]} 4. Ne5 {[%clk 0:04:56.1]} 4... Nd7 {[%clk 0:04:49]} 5. d4 {[%clk
0:04:55.4]} 5... Ngf6 {[%clk 0:04:46.6]} 6. Bd3 {[%clk 0:04:53.8]} 6... g6
{[%clk 0:04:45.2]} 7. O-O {[%clk 0:04:52.6]} 7... Bg7 {[%clk 0:04:44.6]} 8. c3
{[%clk 0:04:52.2]} 8... O-O {[%clk 0:04:43.7]} 9. Nd2 {[%clk 0:04:51.7]} 9...
Nxe5 {[%clk 0:04:37.1]} 10. dxe5 {[%clk 0:04:49.6]} 10... Ng4 {[%clk 0:04:37]}
11. Nf3 {[%clk 0:04:41]} 11... Nxe5 {[%clk 0:04:35]} 12. Nxe5 {[%clk 0:04:40.4]}
12... Bxe5 {[%clk 0:04:34.9]} 13. Re1 {[%clk 0:04:39.3]} 13... Qd6 {[%clk
0:04:09.7]} 14. g3 {[%clk 0:04:35.7]} 14... a6 {[%clk 0:03:52.8]} 15. Qe2 {[%clk
0:04:33.4]} 15... Bf6 {[%clk 0:03:50.2]} 16. Bh6 {[%clk 0:04:31]} 16... Re8
{[%clk 0:03:46.4]} 17. f4 {[%clk 0:04:30.3]} 17... Bf5 {[%clk 0:03:33.5]} 18.
Bxf5 {[%clk 0:04:22.3]} 18... gxf5 {[%clk 0:03:33.4]} 19. Rad1 {[%clk
0:04:21.1]} 19... Rad8 {[%clk 0:03:26.4]} 20. h4 {[%clk 0:04:14.8]} 20... Bxc3
{[%clk 0:03:19.9]} 21. bxc3 {[%clk 0:04:12.7]} 21... Qxh6 {[%clk 0:03:18.2]} 22.
Qe5 {[%clk 0:04:08.7]} 22... e6 {[%clk 0:03:01.6]} 23. Qc7 {[%clk 0:04:07.3]}
23... Rc8 {[%clk 0:02:50.8]} 24. Qxb7 {[%clk 0:04:05.2]} 24... Rxc3 {[%clk
0:02:47.7]} 25. Kf2 {[%clk 0:03:53.8]} 25... Qg7 {[%clk 0:02:32.5]} 26. Rg1
{[%clk 0:03:40.1]} 26... Qg4 {[%clk 0:02:23.5]} 27. Rd2 {[%clk 0:03:19.6]} 27...
Qf3+ {[%clk 0:02:18.5]} 0-1

[Event "Live Chess"]
[Site "Chess.com"]
[Date "2024.06.02"]
[Round "-"]
[White "McFim"]
[Black "booktrunk"]
[Result "1-0"]
[WhiteElo "1657"]
[BlackElo "1523"]
[TimeControl "300"]
[EndTime "21:55:57 PDT"]
[Termination "McFim won by resignation"]

1. e4 {[%clk 0:04:56.6]} 1... b6 {[%clk 0:04:57.9]} 2. d4 {[%clk 0:04:51.4]}
2... Bb7 {[%clk 0:04:54.2]} 3. f3 {[%clk 0:04:50.2]} 3... e6 {[%clk 0:04:48.6]}
4. Be3 {[%clk 0:04:29.2]} 4... Nf6 {[%clk 0:04:45.2]} 5. Bd3 {[%clk 0:04:24.1]}
5... d5 {[%clk 0:04:42.8]} 6. e5 {[%clk 0:04:22.4]} 6... Nfd7 {[%clk 0:04:40.4]}
7. c3 {[%clk 0:04:21]} 7... f6 {[%clk 0:04:39]} 8. exf6 {[%clk 0:04:18.4]} 8...
Nxf6 {[%clk 0:04:37.5]} 9. Bf4 {[%clk 0:04:15.3]} 9... Bd6 {[%clk 0:04:35.4]}
10. Ne2 {[%clk 0:04:09.7]} 10... Bxf4 {[%clk 0:04:33.4]} 11. Nxf4 {[%clk
0:04:08.1]} 11... O-O {[%clk 0:04:32.1]} 12. Ne2 {[%clk 0:03:48.2]} 12... Re8
{[%clk 0:04:26.5]} 13. O-O {[%clk 0:03:46.3]} 13... e5 {[%clk 0:04:25.5]} 14.
dxe5 {[%clk 0:03:45.1]} 14... Rxe5 {[%clk 0:04:22.7]} 15. Nd2 {[%clk 0:03:36.6]}
15... Nbd7 {[%clk 0:04:15.3]} 16. Nb3 {[%clk 0:03:32.6]} 16... Re7 {[%clk
0:04:13.6]} 17. Re1 {[%clk 0:03:28]} 17... c5 {[%clk 0:04:10.8]} 18. Bc2 {[%clk
0:03:24.7]} 18... Nf8 {[%clk 0:04:04.9]} 19. Qd2 {[%clk 0:03:20.7]} 19... Ng6
{[%clk 0:04:03.4]} 20. Nf4 {[%clk 0:03:16.5]} 20... Nxf4 {[%clk 0:04:01.3]} 21.
Qxf4 {[%clk 0:03:14.8]} 21... Rxe1+ {[%clk 0:03:59.8]} 22. Rxe1 {[%clk
0:03:12.4]} 22... Qd7 {[%clk 0:03:56.3]} 23. Bf5 {[%clk 0:02:49.8]} 23... Qf7
{[%clk 0:03:47.9]} 24. Be6 {[%clk 0:02:44.1]} 1-0

[Event "Live Chess"]
[Site "Chess.com"]
[Date "2024.06.02"]
[Round "-"]
[White "Duke_of_Bebington"]
[Black "IgorSchukin"]
[Result "0-1"]
[WhiteElo "1647"]
[BlackElo "1779"]
[TimeControl "300"]
[EndTime "21:56:24 PDT"]
[Termination "IgorSchukin won by resignation"]

1. e4 {[%clk 0:04:57.9]} 1... e5 {[%clk 0:04:57.8]} 2. Nf3 {[%clk 0:04:56.7]}
2... Nc6 {[%clk 0:04:57.4]} 3. Bc4 {[%clk 0:04:55.7]} 3... Nf6 {[%clk 0:04:56]}
4. O-O {[%clk 0:04:53]} 4... Bc5 {[%clk 0:04:51.9]} 5. c3 {[%clk 0:04:49.7]}
5... Nxe4 {[%clk 0:04:46.9]} 6. d4 {[%clk 0:04:41.8]} 6... exd4 {[%clk
0:04:43.1]} 7. cxd4 {[%clk 0:04:40.9]} 7... Be7 {[%clk 0:04:30.2]} 8. Re1 {[%clk
0:04:33]} 8... d5 {[%clk 0:04:28.9]} 9. Bb5 {[%clk 0:04:29.9]} 9... O-O {[%clk
0:04:27.3]} 10. Bxc6 {[%clk 0:04:28]} 10... bxc6 {[%clk 0:04:25.7]} 11. Ne5
{[%clk 0:04:27]} 11... Qd6 {[%clk 0:04:15.9]} 12. Bf4 {[%clk 0:04:24.1]} 12...
Qf6 {[%clk 0:04:14.3]} 13. Bg3 {[%clk 0:04:19.1]} 13... Nxg3 {[%clk 0:04:12.4]}
14. hxg3 {[%clk 0:04:18]} 14... Bd6 {[%clk 0:04:07.9]} 15. Nc3 {[%clk
0:04:14.6]} 15... Bxe5 {[%clk 0:04:03.3]} 16. Rxe5 {[%clk 0:04:08.6]} 16... Be6
{[%clk 0:04:01]} 17. Qd3 {[%clk 0:04:02.4]} 17... c5 {[%clk 0:03:54.7]} 18. Nxd5
{[%clk 0:03:56]} 18... Bxd5 {[%clk 0:03:52.4]} 19. Rxd5 {[%clk 0:03:55]} 19...
cxd4 {[%clk 0:03:50.6]} 20. Rxd4 {[%clk 0:03:52.3]} 20... Rfe8 {[%clk
0:03:45.1]} 21. Rd1 {[%clk 0:03:51.2]} 21... c5 {[%clk 0:03:40.5]} 22. Rh4
{[%clk 0:03:48.4]} 22... g6 {[%clk 0:03:38.7]} 23. Qd2 {[%clk 0:03:37.3]} 23...
Rad8 {[%clk 0:03:34.1]} 24. Qc2 {[%clk 0:03:26.2]} 24... Rxd1+ {[%clk
0:03:31.6]} 25. Qxd1 {[%clk 0:03:26.1]} 25... Qxb2 {[%clk 0:03:29.3]} 26. Kf1
{[%clk 0:03:15.5]} 26... Qxa2 {[%clk 0:03:24.7]} 0-1

[Event "Live Chess"]
[Site "Chess.com"]
[Date "2024.06.02"]
[Round "-"]
[White "KeithArkell"]
[Black "RockTroll"]
[Result "1/2-1/2"]
[WhiteElo "2428"]
[BlackElo "2178"]
[TimeControl "300"]
[EndTime "21:56:54 PDT"]
[Termination "Game drawn - insufficient material"]

1. d4 {[%clk 0:04:57.3]} 1... Nf6 {[%clk 0:04:58.3]} 2. Nf3 {[%clk 0:04:56.5]}
2... g6 {[%clk 0:04:57.8]} 3. c4 {[%clk 0:04:52.7]} 3... Bg7 {[%clk 0:04:57.1]}
4. g3 {[%clk 0:04:52.2]} 4... O-O {[%clk 0:04:56.4]} 5. Bg2 {[%clk 0:04:51.8]}
5... d6 {[%clk 0:04:56.1]} 6. O-O {[%clk 0:04:51.2]} 6... c6 {[%clk 0:04:55.8]}
7. Nc3 {[%clk 0:04:50.2]} 7... Bf5 {[%clk 0:04:55.5]} 8. b3 {[%clk 0:04:48.9]}
8... Ne4 {[%clk 0:04:54.3]} 9. Bb2 {[%clk 0:04:48.4]} 9... Nxc3 {[%clk 0:04:53]}
10. Bxc3 {[%clk 0:04:48.3]} 10... Be4 {[%clk 0:04:52.6]} 11. e3 {[%clk
0:04:46.7]} 11... d5 {[%clk 0:04:49.1]} 12. Nh4 {[%clk 0:04:45.3]} 12... Bxg2
{[%clk 0:04:47.4]} 13. Nxg2 {[%clk 0:04:45.2]} 13... e6 {[%clk 0:04:42.5]} 14.
Nf4 {[%clk 0:04:44.3]} 14... a5 {[%clk 0:04:37.6]} 15. a4 {[%clk 0:04:43.2]}
15... Nd7 {[%clk 0:04:24.2]} 16. Qc2 {[%clk 0:04:42.3]} 16... dxc4 {[%clk
0:04:16.6]} 17. bxc4 {[%clk 0:04:41]} 17... e5 {[%clk 0:04:16.1]} 18. Nd3 {[%clk
0:04:35.5]} 18... exd4 {[%clk 0:04:13.8]} 19. Bxd4 {[%clk 0:04:34.9]} 19... Bxd4
{[%clk 0:03:57.7]} 20. exd4 {[%clk 0:04:32.7]} 20... Qf6 {[%clk 0:03:56.1]} 21.
Qb2 {[%clk 0:04:29.2]} 21... b6 {[%clk 0:03:43.3]} 22. Ne5 {[%clk 0:04:28]}
22... Nxe5 {[%clk 0:03:40.1]} 23. dxe5 {[%clk 0:04:27.2]} 23... Qe6 {[%clk
0:03:37.1]} 24. Qxb6 {[%clk 0:04:25.1]} 24... Qxc4 {[%clk 0:03:33.8]} 25. Rfc1
{[%clk 0:04:22.2]} 25... Qd5 {[%clk 0:03:23.9]} 26. Qc5 {[%clk 0:04:13.8]} 26...
Rad8 {[%clk 0:03:17.1]} 27. Rab1 {[%clk 0:04:06.8]} 27... Rfe8 {[%clk 0:03:16]}
28. Qxd5 {[%clk 0:03:58.3]} 28... Rxd5 {[%clk 0:03:09.4]} 29. f4 {[%clk
0:03:57]} 29... Rd4 {[%clk 0:02:30.4]} 30. Rxc6 {[%clk 0:03:54.4]} 30... Rxa4
{[%clk 0:02:29.5]} 31. Rb2 {[%clk 0:03:49]} 31... Rd8 {[%clk 0:02:26.4]} 32. Rc7
{[%clk 0:03:47.4]} 32... Re4 {[%clk 0:02:08.8]} 33. Kf2 {[%clk 0:03:43.2]} 33...
Rd3 {[%clk 0:02:05.6]} 34. Rb8+ {[%clk 0:03:38.9]} 34... Kg7 {[%clk 0:02:02.7]}
35. Rbb7 {[%clk 0:03:38.2]} 35... Ra4 {[%clk 0:01:55.4]} 36. Rxf7+ {[%clk
0:03:36.3]} 36... Kg8 {[%clk 0:01:54.9]} 37. Rg7+ {[%clk 0:03:34.9]} 37... Kf8
{[%clk 0:01:52.2]} 38. Rgd7 {[%clk 0:03:33.1]} 38... Ra2+ {[%clk 0:01:50.6]} 39.
Ke1 {[%clk 0:03:32.3]} 39... Rxd7 {[%clk 0:01:47.7]} 40. Rxd7 {[%clk 0:03:31.4]}
40... Rxh2 {[%clk 0:01:47.2]} 41. Ra7 {[%clk 0:03:27.5]} 41... Rg2 {[%clk
0:01:43.4]} 42. Rxh7 {[%clk 0:03:25.7]} 42... Rxg3 {[%clk 0:01:42.5]} 43. Kf2
{[%clk 0:03:25]} 43... Ra3 {[%clk 0:01:38.2]} 44. Ra7 {[%clk 0:03:23.9]} 44...
a4 {[%clk 0:01:37.1]} 45. Ke2 {[%clk 0:03:21.3]} 45... Ra1 {[%clk 0:01:36.3]}
46. Kd3 {[%clk 0:02:54.6]} 46... a3 {[%clk 0:01:35.6]} 47. Kc2 {[%clk
0:02:47.7]} 47... a2 {[%clk 0:01:34.5]} 48. Ra6 {[%clk 0:02:31.7]} 48... Kg7
{[%clk 0:01:31.3]} 49. Kb2 {[%clk 0:02:22.3]} 49... Rf1 {[%clk 0:01:29.8]} 50.
Ra7+ {[%clk 0:02:20]} 50... Kh6 {[%clk 0:01:24]} 51. Rxa2 {[%clk 0:02:18.9]}
51... Rxf4 {[%clk 0:01:23.1]} 52. Kc3 {[%clk 0:02:16.1]} 52... Re4 {[%clk
0:01:20.7]} 53. Ra5 {[%clk 0:02:15]} 53... g5 {[%clk 0:01:19.9]} 54. Kd3 {[%clk
0:02:14.4]} 54... Re1 {[%clk 0:01:18.9]} 55. Kd4 {[%clk 0:02:13.3]} 55... g4
{[%clk 0:01:14.5]} 56. Kd5 {[%clk 0:02:08.6]} 56... g3 {[%clk 0:01:10.3]} 57.
Ra2 {[%clk 0:02:07.5]} 57... Kg5 {[%clk 0:01:08.2]} 58. e6 {[%clk 0:02:06.9]}
58... Kg4 {[%clk 0:01:07.1]} 59. Kd6 {[%clk 0:02:05.2]} 59... Kh3 {[%clk
0:01:06.4]} 60. e7 {[%clk 0:02:04.2]} 60... g2 {[%clk 0:01:05.9]} 61. Rxg2
{[%clk 0:02:02.4]} 61... Kxg2 {[%clk 0:01:04.4]} 62. Kd7 {[%clk 0:02:01.9]}
62... Rxe7+ {[%clk 0:01:03.9]} 63. Kxe7 {[%clk 0:02:00.7]} 1/2-1/2